fUST/lending_fUST_20240708
["ID","MTS","AMOUNT","RATE_DAILY","PERIOD"]
[331469669,1720429838441,-500.0,0.00033291,7]
[331469671,1720429838451,-500.0,0.00033291,7]
[331469673,1720429838460,-325.725509,0.00033291,7]
[331469675,1720429838469,-355.09727959,0.00033291,7]
[331469677,1720429838479,-500.0,0.00033291,7]
[331469678,1720429838489,-30000.0,0.00033292,2]
[331469680,1720429838499,-12000.00132,0.00033842,4]
[331469682,1720429838509,-18816.1187557,0.00034457,4]
[331469684,1720429838519,-10563.33124298,0.00034467,2]
[331469686,1720429838531,-1828.54041683,0.00034752,2]
[331469687,1720429838540,-620.01219253,0.00035759,2]
[331469689,1720429838551,-3755.53030571,0.00036136,4]
[331469691,1720429838564,-9476.93841789,0.00036136,4]
[331469693,1720429838574,-1000.0,0.00037,37]
[331469695,1720429838583,-1662.013679,0.00037523,4]
[331469697,1720429838593,-1003.695541,0.000385,27]
[331469699,1720429838603,-273.4,0.0003878,30]
[331469701,1720429838615,-8799.119999,0.000388,30]
[331469703,1720429838624,-1000.0,0.00039,39]
[331469705,1720429838634,-243.20391872,0.00039393,2]
[331469707,1720429838647,-1828.54041683,0.00039802,2]
[331469709,1720429838658,-156.72112003,0.00039994,4]
[331469711,1720429838667,-256.72904767,0.00039999,2]
[331469713,1720429838676,-245.20046817,0.00040278,4]
[331469715,1720429838686,-9779.10702914,0.00040599,20]
[331469717,1720429838695,-1000.0,0.00041,41]
[331469719,1720429838705,-179.1923836,0.00041096,2]
[331469720,1720429838714,-454.01138253,0.00041924,30]
[331469722,1720429838724,-1199.88,0.00042,4]
[331469724,1720429838733,-157.59667049,0.00042035,30]
[331469726,1720429838743,-454.01138253,0.00042285,30]
[331469728,1720429838753,-454.01138253,0.00042543,30]
[331469730,1720429838763,-1000.0,0.00043,43]
[331469732,1720429838773,-1730.39338617,0.00043834,2]
[331469734,1720429838783,-454.01138253,0.00044679,30]
[331469736,1720429838794,-18816.1187557,0.00044841,5]
[331469738,1720429838804,-1828.54041683,0.00044851,2]
[331469740,1720429838814,-1000.0,0.00045,45]
[331469742,1720429838823,-6088.115,0.00045,60]
[331469744,1720429838834,-250.0,0.00045,15]
[331469746,1720429838844,-454.01138253,0.00045327,30]
[331469748,1720429838853,-454.01138253,0.00045708,30]
[331469750,1720429838865,-618.99346542,0.000458,30]
[331469752,1720429838875,-454.01138253,0.00046191,30]
[331469754,1720429838884,-454.01138253,0.00046567,30]
[331469756,1720429838893,-500.0,0.00046575,120]
[331469758,1720429838904,-500.0,0.00046575,120]
[331469760,1720429838914,-500.0,0.00046575,120]
[331469762,1720429838924,-500.0,0.00046575,120]
[331469764,1720429838935,-500.0,0.00046575,120]
[331469766,1720429838945,-500.0,0.00046575,120]
[331469768,1720429838955,-583.41751972,0.00046575,120]
[331469770,1720429838964,-500.0,0.00046575,120]
[331469772,1720429838974,-500.0,0.00046575,120]
[331469774,1720429838983,-500.0,0.00046575,120]
[331469776,1720429838993,-500.0,0.00046575,120]
[331469778,1720429839003,-500.0,0.00046575,120]
[331469780,1720429839013,-500.0,0.00046575,120]
[331469782,1720429839022,-1000.0,0.00047,47]
[331469784,1720429839033,-454.01138253,0.00047179,30]
[331469786,1720429839043,-156.8926884,0.00047751,30]
[331469787,1720429839053,-454.01138253,0.00048265,30]
[331469789,1720429839063,-1873.81024533,0.000488,120]
[331469791,1720429839074,-1000.0,0.00049,120]
[331469793,1720429839084,-10011.52,0.00049,30]
[331469795,1720429839094,-823.55,0.00049315,120]
[331469797,1720429839105,-823.55,0.00049315,120]
[331469799,1720429839120,-823.55,0.00049315,120]
[331469801,1720429839132,-823.55,0.00049315,120]
[331469803,1720429839142,-823.55,0.00049315,120]
[331469805,1720429839151,-823.55,0.00049315,120]
[331469807,1720429839161,-823.55,0.00049315,120]
[331469809,1720429839171,-823.55,0.00049315,120]
[331469810,1720429839181,-823.55,0.00049315,120]
[331469811,1720429839192,-823.55,0.00049315,120]
[331469812,1720429839202,-823.55,0.00049315,120]
[331469813,1720429839213,-823.55,0.00049315,120]
[331469814,1720429839223,-823.55,0.00049315,120]
[331469815,1720429839233,-823.55,0.00049315,120]
[331469816,1720429839242,-823.55,0.00049315,120]
[331469817,1720429839253,-823.55,0.00049315,120]
[331469818,1720429839263,-823.55,0.00049315,120]
[331469819,1720429839274,-823.55,0.00049315,120]
[331469820,1720429839284,-823.55,0.00049315,120]
[331469821,1720429839297,-823.55,0.00049315,120]
[331469822,1720429839307,-823.55,0.00049315,120]
[331469823,1720429839317,-823.55,0.00049315,120]
[331469824,1720429839327,-823.55,0.00049315,120]
[331469825,1720429839338,-823.63521076,0.00049315,120]
[331469826,1720429839348,-150.0,0.00049546,2]
[331469827,1720429839426,-454.01138253,0.00049711,30]
[331469828,1720429839437,-1000.0,0.00049868,30]
[331469829,1720429839448,-1828.54041683,0.000499,2]
[331469830,1720429839458,-154.60575532,0.0005,30]
[331469831,1720429839468,-533.81299865,0.0005,30]
[331469832,1720429839478,-200.0,0.0005,120]
[331469833,1720429839489,-250.0,0.0005,12]
[331469834,1720429839499,-250.0,0.0005,15]
[331469835,1720429839509,-18816.1187557,0.00050048,6]
[331469836,1720429839519,-165.881475,0.00050068,2]
[331469837,1720429839529,-5479.0,0.0005074,30]
[331469838,1720429839539,-454.01138253,0.00050954,60]
[331469839,1720429839553,-1000.0,0.00051,120]
[331469840,1720429839563,-500.0,0.00052055,120]
[331469841,1720429839572,-500.0,0.00052055,120]
[331469842,1720429839583,-500.0,0.00052055,120]
[331469843,1720429839594,-493.862443,0.00052055,120]
[331469844,1720429839605,-454.01138253,0.00052111,60]
[331469845,1720429839616,-454.01138253,0.00052503,60]
[331469846,1720429839627,-999.0,0.00052779,120]
[331469847,1720429839639,-2879.54544911,0.000528,120]
[331469848,1720429839649,-4501.75547339,0.000528,120]
[331469849,1720429839658,-600.0,0.000528,2]
[331469850,1720429839668,-151.37713241,0.00052901,10]
[331469851,1720429839678,-999.0,0.0005319,120]
[331469852,1720429839688,-813.2432863,0.0005335,2]
[331469853,1720429839698,-999.0,0.00053601,120]
[331469854,1720429839707,-999.0,0.00054012,120]
[331469855,1720429839717,-454.01138253,0.00054318,60]
[331469856,1720429839727,-999.0,0.00054423,120]
[331469858,1720429839737,-454.01138253,0.00054649,60]
[331469860,1720429839747,-568.93,0.00054794,120]
[331469862,1720429839757,-769.5080853,0.00054794,120]
[331469865,1720429839768,-337.82941501,0.00054795,120]
[331469867,1720429839778,-500.0,0.00054795,120]
[331469869,1720429839788,-500.0,0.00054795,120]
[331469871,1720429839799,-500.0,0.00054795,120]
[331469873,1720429839810,-500.0,0.00054795,120]
[331469875,1720429839820,-500.0,0.00054795,120]
[331469876,1720429839830,-500.0,0.00054795,120]
[331469877,1720429839840,-500.0,0.00054795,120]
[331469878,1720429839849,-500.0,0.00054795,120]
[331469879,1720429839858,-500.0,0.00054795,120]
[331469880,1720429839870,-500.0,0.00054795,120]
[331469882,1720429839879,-500.0,0.00054795,120]
[331469884,1720429839889,-500.0,0.00054795,120]
[331469886,1720429839899,-500.0,0.00054795,120]
[331469888,1720429839909,-500.0,0.00054795,120]
[331469890,1720429839919,-500.0,0.00054795,120]
[331469892,1720429839929,-500.0,0.00054795,120]
[331469894,1720429839939,-500.0,0.00054795,120]
[331469896,1720429839948,-500.0,0.00054795,120]
[331469898,1720429839958,-500.0,0.00054795,120]
[331469900,1720429839968,-587.09457853,0.00054795,120]
[331469902,1720429839979,-500.0,0.00054795,120]
[331469904,1720429839989,-500.0,0.00054795,120]
[331469905,1720429839999,-500.0,0.00054795,120]
[331469906,1720429840010,-500.0,0.00054795,120]
[331469907,1720429840020,-500.0,0.00054795,120]
[331469908,1720429840031,-500.0,0.00054795,120]
[331469909,1720429840041,-500.0,0.00054795,120]
[331469910,1720429840050,-999.0,0.00054834,120]
[331469911,1720429840060,-999.0,0.00055245,120]
[331469912,1720429840071,-999.0,0.00055656,120]
[331469913,1720429840081,-999.0,0.00056067,120]
[331469914,1720429840091,-157.5966705,0.00056113,120]
[331469915,1720429840101,-999.0,0.00056478,120]
[331469917,1720429840111,-5169.43023937,0.00056788,2]
[331469919,1720429840122,-18816.1187557,0.00056824,6]
[331469921,1720429840132,-999.0,0.00056889,120]
[331469923,1720429840143,-5169.43023937,0.00056988,2]
[331469924,1720429840154,-454.01138253,0.00057027,120]
[331469925,1720429840168,-999.0,0.000573,120]
[331469927,1720429840180,-5169.43023937,0.00057358,2]
[331469928,1720429840191,-37632.2375114,0.00057414,7]
[331469929,1720429840201,-9478.67808081,0.00057424,61]
[331469930,1720429840212,-648.59596492,0.00057424,2]
[331469931,1720429840222,-88888.0,0.00057424,120]
[331469932,1720429840232,-500.0,0.00057534,120]
[331469934,1720429840242,-500.0,0.00057534,120]
[331469935,1720429840252,-500.0,0.00057534,120]
[331469937,1720429840262,-500.0,0.00057534,120]
[331469939,1720429840271,-500.0,0.00057534,120]
[331469941,1720429840281,-2000.0,0.00057534,120]
[331469943,1720429840290,-500.0,0.00057534,120]
[331469944,1720429840301,-500.0,0.00057534,120]
[331469945,1720429840311,-500.0,0.00057534,120]
[331469946,1720429840320,-500.0,0.00057534,120]
[331469947,1720429840330,-500.0,0.00057534,120]
[331469949,1720429840340,-500.0,0.00057534,120]
[331469951,1720429840350,-500.0,0.00057534,120]
[331469953,1720429840360,-500.0,0.00057534,120]
[331469954,1720429840370,-500.0,0.00057534,120]
[331469956,1720429840380,-500.0,0.00057534,10]
[331469958,1720429840389,-500.0,0.00057534,120]
[331469960,1720429840399,-500.0,0.00057534,120]
[331469961,1720429840409,-920.15,0.00057534,120]
[331469963,1720429840419,-568.93,0.00057534,120]
[331469965,1720429840428,-500.0,0.00057534,120]
[331469967,1720429840437,-500.0,0.00057534,120]
[331469968,1720429840448,-500.0,0.00057534,2]
[331469969,1720429840457,-500.0,0.00057534,120]
[331469971,1720429840475,-510.97,0.00057534,120]
[331469973,1720429840484,-500.0,0.00057534,120]
[331469975,1720429840494,-500.0,0.00057534,120]
[331469976,1720429840503,-500.0,0.00057534,120]
[331469978,1720429840513,-517.45,0.00057534,120]
[331469979,1720429840523,-500.0,0.00057534,120]
[331469980,1720429840533,-500.0,0.00057534,120]
[331469981,1720429840544,-500.0,0.00057534,120]
[331469982,1720429840554,-500.0,0.00057534,120]
[331469983,1720429840567,-500.0,0.00057534,120]
[331469984,1720429840576,-500.0,0.00057534,120]
[331469985,1720429840586,-500.0,0.00057534,120]
[331469986,1720429840595,-500.0,0.00057534,120]
[331469987,1720429840606,-500.0,0.00057534,120]
[331469988,1720429840616,-500.0,0.00057534,120]
[331469989,1720429840626,-500.0,0.00057534,120]
[331469990,1720429840638,-784.92,0.00057534,120]
[331469991,1720429840648,-784.92,0.00057534,120]
[331469992,1720429840658,-784.92,0.00057534,120]
[331469993,1720429840672,-784.92,0.00057534,120]
[331469994,1720429840682,-784.92,0.00057534,120]
[331469995,1720429840691,-784.92,0.00057534,120]
[331469996,1720429840702,-784.92,0.00057534,120]
[331469997,1720429840712,-784.92,0.00057534,120]
[331469998,1720429840722,-784.92,0.00057534,120]
[331469999,1720429840733,-784.92,0.00057534,120]
[331470000,1720429840742,-784.92,0.00057534,120]
[331470001,1720429840751,-784.92,0.00057534,120]
[331470002,1720429840761,-500.0,0.00057534,120]
[331470003,1720429840771,-500.0,0.00057534,120]
[331470004,1720429840780,-500.0,0.00057534,120]
[331470005,1720429840850,-500.0,0.00057534,120]
[331470006,1720429840861,-500.0,0.00057534,120]
[331470007,1720429840871,-500.0,0.00057534,120]
[331470008,1720429840880,-500.0,0.00057534,120]
[331470009,1720429840893,-500.0,0.00057534,120]
[331470010,1720429840902,-500.0,0.00057534,120]
[331470011,1720429840912,-500.0,0.00057534,120]
[331470012,1720429840921,-169.44,0.00057534,120]
[331470013,1720429840930,-500.0,0.00057534,120]
[331470014,1720429840940,-500.0,0.00057534,120]
[331470015,1720429840949,-2063.15,0.00057534,120]
[331470016,1720429840958,-500.0,0.00057534,120]
[331470017,1720429840968,-500.0,0.00057534,120]
[331470018,1720429840977,-517.09287822,0.00057534,120]
[331470019,1720429840987,-500.0,0.00057534,120]
[331470020,1720429840996,-502.47,0.00057534,120]
[331470021,1720429841006,-500.0,0.00057534,120]
[331470022,1720429841016,-500.0,0.00057534,120]
[331470023,1720429841025,-500.0,0.00057534,120]
[331470024,1720429841034,-500.0,0.00057534,120]
[331470025,1720429841047,-500.0,0.00057534,120]
[331470026,1720429841056,-500.0,0.00057534,120]
[331470027,1720429841065,-500.0,0.00057534,120]
[331470028,1720429841074,-500.0,0.00057534,120]
[331470029,1720429841083,-500.0,0.00057534,120]
[331470030,1720429841093,-500.0,0.00057534,120]
[331470031,1720429841102,-500.0,0.00057534,120]
[331470032,1720429841112,-500.0,0.00057534,120]
[331470033,1720429841121,-500.0,0.00057534,120]
[331470034,1720429841131,-994.82,0.00057534,120]
[331470035,1720429841141,-500.0,0.00057534,120]
[331470036,1720429841150,-500.0,0.00057534,120]
[331470037,1720429841159,-500.0,0.00057534,120]
[331470038,1720429841169,-500.0,0.00057534,120]
[331470039,1720429841179,-500.0,0.00057534,120]
[331470040,1720429841188,-2140.0,0.00057534,60]
[331470041,1720429841198,-212.00554518,0.00057534,120]
[331470042,1720429841207,-500.0,0.00057534,120]
[331470043,1720429841217,-500.0,0.00057534,120]
[331470044,1720429841226,-500.0,0.00057534,120]
[331470045,1720429841235,-500.0,0.00057534,120]
[331470046,1720429841245,-500.0,0.00057534,120]
[331470047,1720429841255,-500.0,0.00057534,120]
[331470048,1720429841264,-501.83399043,0.00057534,120]
[331470049,1720429841273,-500.0,0.00057534,120]
[331470050,1720429841282,-421.63705289,0.00057534,120]
[331470051,1720429841291,-1339.94,0.00057534,120]
[331470052,1720429841299,-500.0,0.00057534,120]
[331470053,1720429841309,-1066.03,0.00057534,120]
[331470054,1720429841318,-521.32037622,0.00057534,120]
[331470055,1720429841328,-1053.19,0.00057534,120]
[331470056,1720429841337,-501.55932347,0.00057534,120]
[331470057,1720429841347,-500.0,0.00057534,120]
[331470058,1720429841356,-1000.0,0.00057534,120]
[331470059,1720429841367,-500.0,0.00057534,120]
[331470060,1720429841376,-886.54,0.00057534,120]
[331470061,1720429841385,-513.9321426,0.00057534,120]
[331470062,1720429841394,-500.0,0.00057534,120]
[331470063,1720429841403,-500.0,0.00057534,120]
[331470064,1720429841412,-151.0,0.00057534,120]
[331470065,1720429841422,-500.0,0.00057534,120]
[331470066,1720429841431,-590.87,0.00057534,120]
[331470068,1720429841441,-500.0,0.00057534,120]
[331470070,1720429841450,-522.75456289,0.00057534,120]
[331470071,1720429841459,-346.326104,0.00057534,120]
[331470072,1720429841468,-535.1,0.00057534,120]
[331470073,1720429841478,-500.0,0.00057534,120]
[331470075,1720429841487,-514.23803187,0.00057534,120]
[331470077,1720429841496,-346.326104,0.00057534,120]
[331470079,1720429841505,-500.0,0.00057534,120]
[331470080,1720429841515,-1177.67,0.00057534,120]
[331470082,1720429841524,-500.0,0.00057534,120]
[331470084,1720429841533,-515.85036784,0.00057534,120]
[331470086,1720429841543,-260.391378,0.00057534,120]
[331470088,1720429841553,-260.391378,0.00057534,120]
[331470090,1720429841565,-500.0,0.00057534,120]
[331470092,1720429841575,-1072.59,0.00057534,120]
[331470093,1720429841584,-529.93098363,0.00057534,120]
[331470094,1720429841595,-691.2,0.00057534,120]
[331470096,1720429841603,-500.0,0.00057534,120]
[331470098,1720429841612,-878.22,0.00057534,120]
[331470100,1720429841622,-173.44407233,0.00057534,120]
[331470101,1720429841636,-1283.26,0.00057534,120]
[331470103,1720429841646,-500.0,0.00057534,120]
[331470105,1720429841656,-515.02065842,0.00057534,120]
[331470107,1720429841666,-509.06145503,0.00057534,120]
[331470109,1720429841675,-513.33974616,0.00057534,120]
[331470111,1720429841684,-509.14157313,0.00057534,120]
[331470112,1720429841694,-500.0,0.00057534,120]
[331470113,1720429841703,-500.0,0.00057534,120]
[331470114,1720429841712,-500.0,0.00057534,120]
[331470115,1720429841720,-500.0,0.00057534,120]
[331470116,1720429841729,-507.83945506,0.00057534,120]
[331470117,1720429841739,-500.0,0.00057534,120]
[331470118,1720429841748,-266.958258,0.00057534,120]
[331470119,1720429841757,-500.0,0.00057534,120]
[331470120,1720429841766,-1208.0,0.00057534,120]
[331470121,1720429841775,-500.0,0.00057534,120]
[331470122,1720429841785,-266.958258,0.00057534,120]
[331470123,1720429841794,-500.0,0.00057534,120]
[331470124,1720429841804,-631.22460878,0.00057534,120]
[331470125,1720429841813,-731.135599,0.00057534,120]
[331470126,1720429841822,-151.0,0.00057534,120]
[331470127,1720429841832,-500.0,0.00057534,120]
[331470128,1720429841841,-500.0,0.00057534,120]
[331470129,1720429841850,-500.0,0.00057534,120]
[331470130,1720429841859,-500.0,0.00057534,120]
[331470131,1720429841870,-500.0,0.00057534,120]
[331470132,1720429841879,-500.0,0.00057534,120]
[331470133,1720429841892,-500.0,0.00057534,120]
[331470134,1720429841901,-500.0,0.00057534,120]
[331470135,1720429841911,-500.0,0.00057534,120]
[331470136,1720429841920,-500.0,0.00057534,120]
[331470137,1720429841929,-500.0,0.00057534,120]
[331470138,1720429841938,-500.0,0.00057534,120]
[331470139,1720429841948,-500.0,0.00057534,120]
[331470140,1720429841958,-238.77980863,0.00057534,120]
[331470141,1720429841967,-516.01750948,0.00057534,120]
[331470142,1720429841978,-500.0,0.00057534,120]
[331470143,1720429841988,-500.0,0.00057534,120]
[331470144,1720429841998,-500.0,0.00057534,120]
[331470145,1720429842063,-500.0,0.00057534,120]
[331470146,1720429842073,-517.20444976,0.00057534,120]
[331470147,1720429842082,-500.0,0.00057534,120]
[331470148,1720429842091,-1355.12,0.00057534,120]
[331470149,1720429842101,-506.70309239,0.00057534,120]
[331470150,1720429842110,-1000.0,0.00057534,120]
[331470151,1720429842120,-151.0,0.00057534,120]
[331470152,1720429842129,-226.02081852,0.00057534,120]
[331470153,1720429842138,-500.0,0.00057534,120]
[331470154,1720429842148,-210.0681247,0.00057534,120]
[331470155,1720429842157,-3154.85,0.00057534,120]
[331470156,1720429842166,-500.0,0.00057534,120]
[331470157,1720429842175,-500.0,0.00057534,120]
[331470158,1720429842184,-500.0,0.00057534,120]
[331470159,1720429842194,-12497.94,0.00057534,120]
[331470160,1720429842203,-510.26779255,0.00057534,120]
[331470161,1720429842211,-513.58861862,0.00057534,120]
[331470162,1720429842221,-500.0,0.00057534,120]
[331470163,1720429842231,-500.0,0.00057534,120]
[331470164,1720429842241,-1412.73,0.00057534,120]
[331470165,1720429842251,-1412.73,0.00057534,120]
[331470166,1720429842262,-500.0,0.00057534,120]
[331470167,1720429842271,-1412.73,0.00057534,120]
[331470168,1720429842281,-1412.73,0.00057534,120]
[331470169,1720429842290,-1412.73,0.00057534,120]
[331470170,1720429842300,-1412.73,0.00057534,120]
[331470171,1720429842309,-1412.73,0.00057534,120]
[331470172,1720429842319,-1412.73,0.00057534,120]
[331470173,1720429842328,-1412.73,0.00057534,120]
[331470174,1720429842337,-1412.73,0.00057534,120]
[331470175,1720429842347,-1412.73,0.00057534,120]
[331470176,1720429842355,-1412.73,0.00057534,120]
[331470177,1720429842367,-1412.73,0.00057534,120]
[331470178,1720429842376,-1412.73,0.00057534,120]
[331470179,1720429842386,-1412.73,0.00057534,120]
[331470180,1720429842396,-1412.73,0.00057534,120]
[331470181,1720429842405,-1412.73,0.00057534,120]
[331470182,1720429842415,-500.0,0.00057534,120]
[331470183,1720429842424,-683.1,0.00057534,120]
[331470184,1720429842436,-683.1,0.00057534,120]
[331470185,1720429842445,-683.1,0.00057534,120]
[331470186,1720429842454,-1595.55,0.00057534,120]
[331470187,1720429842465,-683.1,0.00057534,120]
[331470188,1720429842475,-683.1,0.00057534,120]
[331470189,1720429842485,-683.1,0.00057534,120]
[331470190,1720429842495,-683.1,0.00057534,120]
[331470191,1720429842504,-683.1,0.00057534,120]
[331470192,1720429842514,-683.1,0.00057534,120]
[331470193,1720429842524,-683.1,0.00057534,120]
[331470194,1720429842533,-1148.8,0.00057534,120]
[331470195,1720429842542,-683.1,0.00057534,120]
[331470196,1720429842556,-683.1,0.00057534,120]
[331470197,1720429842565,-500.0,0.00057534,120]
[331470198,1720429842574,-500.0,0.00057534,120]
[331470199,1720429842584,-500.0,0.00057534,120]
[331470200,1720429842595,-632.14,0.00057534,120]
[331470202,1720429842605,-4166.68,0.00057534,120]
[331470205,1720429842625,-500.0,0.00057534,120]
[331470207,1720429842646,-500.0,0.00057534,120]
[331470210,1720429842661,-3248.43,0.00057534,120]
[331470212,1720429842676,-3248.43,0.00057534,120]
[331470215,1720429842692,-3248.43,0.00057534,120]
[331470218,1720429842707,-3248.43,0.00057534,120]
[331470220,1720429842723,-3248.43,0.00057534,120]
[331470223,1720429842740,-3248.43,0.00057534,120]
[331470225,1720429842754,-3248.43,0.00057534,120]
[331470228,1720429842769,-3248.43,0.00057534,120]
[331470231,1720429842785,-3248.43,0.00057534,120]
[331470236,1720429842800,-3248.43,0.00057534,120]
[331470238,1720429842813,-3248.43,0.00057534,120]
[331470240,1720429842827,-3248.43,0.00057534,120]
[331470242,1720429842841,-151.0,0.00057534,120]
[331470243,1720429842856,-500.0,0.00057534,120]
[331470244,1720429842872,-500.0,0.00057534,120]
[331470245,1720429842888,-500.0,0.00057534,120]
[331470246,1720429842901,-633.28004618,0.00057534,120]
[331470247,1720429842913,-180.71333506,0.00057534,120]
[331470248,1720429842926,-506.93604909,0.00057534,120]
[331470249,1720429842941,-386.51422723,0.00057534,120]
[331470250,1720429842955,-500.0,0.00057534,120]
[331470251,1720429842971,-512.09754933,0.00057534,120]
[331470253,1720429842984,-899.9,0.00057534,120]
[331470255,1720429843000,-500.0,0.00057534,7]
[331470256,1720429843010,-500.0,0.00057534,120]
[331470257,1720429843023,-500.0,0.00057534,120]
[331470258,1720429843035,-659.27,0.00057534,120]
[331470259,1720429843047,-500.0,0.00057534,120]
[331470260,1720429843060,-235.56290883,0.00057534,120]
[331470262,1720429843072,-5169.43023937,0.00057675,2]
[331470265,1720429843084,-999.0,0.00057711,120]
[331470267,1720429843096,-454.01138253,0.00057724,120]
[331470268,1720429843109,-5169.43023937,0.00057884,2]
[331470269,1720429843121,-1412.73,0.00057962,120]
[331470272,1720429843132,-9000.0,0.00058,90]
[331470274,1720429843149,-999.0,0.00058122,120]
[331470276,1720429843162,-201.839644,0.00058148,120]
[331470278,1720429843176,-151.0,0.00058148,120]
[331470280,1720429843188,-151.0,0.00058148,120]
[331470281,1720429843202,-5169.43023937,0.00058173,2]
[331470282,1720429843214,-784.92,0.00058276,120]
[331470283,1720429843226,-500.0,0.00058276,120]
[331470284,1720429843238,-500.0,0.00058276,120]
[331470285,1720429843250,-683.1,0.00058276,120]
[331470286,1720429843263,-3248.43,0.00058276,120]
[331470287,1720429843276,-5169.43023937,0.00058461,2]
[331470288,1720429843288,-999.0,0.00058533,120]
[331470289,1720429843301,-151.0,0.00058583,120]
[331470290,1720429843313,-151.0,0.00058583,120]
[331470291,1720429843325,-5169.43023937,0.00058871,2]
[331470292,1720429843337,-999.0,0.00058944,120]
[331470293,1720429843350,-454.01138253,0.00058986,120]
[331470295,1720429843359,-151.0,0.00059,120]
[331470306,1720429843458,-151.0,0.00059,120]
[331470309,1720429843476,-1000.0,0.00059,120]
[331470311,1720429843487,-5169.43023937,0.00059002,2]
[331470313,1720429843496,-1412.73,0.00059099,120]
[331470315,1720429843507,-346.326104,0.0005912,120]
[331470317,1720429843517,-346.326104,0.0005912,120]
[331470319,1720429843528,-260.391378,0.0005912,120]
[331470321,1720429843537,-260.391378,0.0005912,120]
[331470323,1720429843547,-266.958258,0.0005912,120]
[331470325,1720429843557,-266.958258,0.0005912,120]
[331470327,1720429843571,-280.8762462,0.00059135,7]
[331470329,1720429843581,-5169.43023937,0.00059326,2]
[331470331,1720429843591,-454.01138253,0.00059354,120]
[331470333,1720429843603,-999.0,0.00059355,120]
[331470335,1720429843615,-454.01138253,0.00059399,120]
[331470337,1720429843624,-784.92,0.00059524,120]
[331470339,1720429843635,-500.0,0.00059524,120]
[331470341,1720429843646,-500.0,0.00059524,120]
[331470343,1720429843656,-683.1,0.00059524,120]
[331470345,1720429843667,-3248.43,0.00059524,120]
[331470347,1720429843678,-5169.43023937,0.00059595,2]
[331470349,1720429843688,-454.01138253,0.0005968,120]
[331470350,1720429843699,-999.0,0.00059766,120]
[331470352,1720429843710,-5169.43023937,0.00059799,2]
[331470354,1720429843720,-1412.73,0.00059862,120]
[331470355,1720429843730,-1412.73,0.00059862,120]
[331470356,1720429843740,-1412.73,0.00059862,120]
[331470357,1720429843750,-1412.73,0.00059862,120]
[331470358,1720429843760,-1412.87455019,0.00059862,120]
[331470360,1720429843769,-194.23989892,0.000599,120]
[331470362,1720429843779,-194.73,0.000599,120]
[331470364,1720429843789,-5000.0,0.0006,120]
[331470366,1720429843799,-2075.0,0.0006,120]
[331470367,1720429843809,-606.92202189,0.0006,120]
[331470368,1720429843819,-300.0,0.0006,120]
[331470370,1720429843830,-250.0,0.0006,15]
[331470372,1720429843840,-182.24892994,0.0006,120]
[331470374,1720429843850,-999.0,0.00060176,120]
[331470375,1720429843859,-454.01138253,0.00060238,120]
[331470377,1720429843872,-5169.43023937,0.00060248,2]
[331470378,1720429843881,-568.93,0.00060273,120]
[331470380,1720429843891,-784.92,0.00060303,120]
[331470382,1720429843900,-500.0,0.00060303,120]
[331470384,1720429843909,-500.0,0.00060303,120]